[Event "*** Titled Tuesday Blitz"]
[Site "Chess.com"]
[Date "2020.12.01"]
[Round "6"]
[White "DraG0s3L"]
[Black "TigrVShlyape"]
[Result "0-1"]
[WhiteElo "2550"]
[BlackElo "2857"]
[TimeControl "180+1"]
[EndTime "11:05:08 PST"]
[Termination "TigrVShlyape won by checkmate"]

1. c4 {[%clk 0:03:00.9]} 1... e5 {[%clk 0:02:55.1]} 2. Nc3 {[%clk 0:03:01]} 2...
Nc6 {[%clk 0:02:54.6]} 3. g3 {[%clk 0:03:01.2]} 3... Bc5 {[%clk 0:02:53.6]} 4.
Bg2 {[%clk 0:03:00.7]} 4... Nge7 {[%clk 0:02:51.6]} 5. e3 {[%clk 0:03:00.4]}
5... a6 {[%clk 0:02:51.9]} 6. Nge2 {[%clk 0:03:00.2]} 6... Ba7 {[%clk 0:02:52]}
7. O-O {[%clk 0:02:59.8]} 7... d6 {[%clk 0:02:50.9]} 8. d4 {[%clk 0:02:59.5]}
8... O-O {[%clk 0:02:50]} 9. d5 {[%clk 0:02:49.2]} 9... Nb8 {[%clk 0:02:48.4]}
10. b4 {[%clk 0:02:49.2]} 10... Nd7 {[%clk 0:02:10.3]} 11. e4 {[%clk 0:02:43.9]}
11... f5 {[%clk 0:02:08.3]} 12. Be3 {[%clk 0:02:44]} 12... fxe4 {[%clk
0:01:45.5]} 13. Bxa7 {[%clk 0:02:41.8]} 13... Rxa7 {[%clk 0:01:45]} 14. Nxe4
{[%clk 0:02:42.4]} 14... Nf5 {[%clk 0:01:44.1]} 15. c5 {[%clk 0:02:36.3]} 15...
Nf6 {[%clk 0:01:42.6]} 16. Rc1 {[%clk 0:02:23.2]} 16... h6 {[%clk 0:01:38.1]}
17. Qb3 {[%clk 0:02:14.8]} 17... Kh8 {[%clk 0:01:36.3]} 18. cxd6 {[%clk
0:02:10]} 18... cxd6 {[%clk 0:01:35.4]} 19. Rc3 {[%clk 0:01:57.7]} 19... Bd7
{[%clk 0:01:32.8]} 20. Rfc1 {[%clk 0:01:54.4]} 20... Bb5 {[%clk 0:01:19]} 21.
Qb2 {[%clk 0:01:54.7]} 21... Ra8 {[%clk 0:01:00.3]} 22. Rc7 {[%clk 0:01:31.1]}
22... Rb8 {[%clk 0:00:51.4]} 23. Nxf6 {[%clk 0:01:24.8]} 23... Qxf6 {[%clk
0:00:47.6]} 24. Be4 {[%clk 0:01:16.4]} 24... Nh4 {[%clk 0:00:27.1]} 25. f4
{[%clk 0:01:04.5]} 25... Ng6 {[%clk 0:00:22.2]} 26. f5 {[%clk 0:01:00.4]} 26...
Ne7 {[%clk 0:00:21.9]} 27. Nf4 {[%clk 0:00:46.2]} 27... Nxf5 {[%clk 0:00:18.2]}
28. Ne6 {[%clk 0:00:46.3]} 28... Nd4 {[%clk 0:00:16.2]} 29. Nxd4 {[%clk
0:00:15.7]} 29... exd4 {[%clk 0:00:15.7]} 30. Rd1 {[%clk 0:00:12.7]} 30... Rbe8
{[%clk 0:00:15.1]} 31. Qxd4 {[%clk 0:00:10.8]} 31... Rxe4 {[%clk 0:00:12.2]} 32.
Qxe4 {[%clk 0:00:08.3]} 32... Qf2+ {[%clk 0:00:12.6]} 33. Kh1 {[%clk 0:00:08.8]}
33... Be2 {[%clk 0:00:12.3]} 34. Rxg7 {[%clk 0:00:03.3]} 34... Bf3+ {[%clk
0:00:12]} 35. Qxf3 {[%clk 0:00:02.4]} 35... Qxf3+ {[%clk 0:00:12.4]} 36. Kg1
{[%clk 0:00:03.3]} 36... Qxd1+ {[%clk 0:00:13]} 37. Kg2 {[%clk 0:00:04]} 37...
Qf1# {[%clk 0:00:13.9]} 0-1

[Event "*** Titled Tuesday Blitz"]
[Site "Chess.com"]
[Date "2020.12.01"]
[Round "6"]
[White "26andrej26"]
[Black "GMSrinath"]
[Result "0-1"]
[WhiteElo "2490"]
[BlackElo "2803"]
[TimeControl "180+1"]
[EndTime "11:05:08 PST"]
[Termination "GMSrinath won by resignation"]

1. e4 {[%clk 0:03:00.9]} 1... c6 {[%clk 0:02:58.7]} 2. Nc3 {[%clk 0:03:00]} 2...
d5 {[%clk 0:02:58.7]} 3. d4 {[%clk 0:03:00.9]} 3... dxe4 {[%clk 0:02:58.1]} 4.
Nxe4 {[%clk 0:03:01.8]} 4... Nf6 {[%clk 0:02:57.8]} 5. Nxf6+ {[%clk 0:03:02.2]}
5... exf6 {[%clk 0:02:58.7]} 6. c3 {[%clk 0:03:02.8]} 6... Bd6 {[%clk
0:02:57.6]} 7. Bd3 {[%clk 0:03:03.7]} 7... O-O {[%clk 0:02:56.5]} 8. Qc2 {[%clk
0:03:04.6]} 8... Re8+ {[%clk 0:02:56.2]} 9. Be3 {[%clk 0:03:05.3]} 9... g6
{[%clk 0:02:50.9]} 10. Ne2 {[%clk 0:03:04.9]} 10... Nd7 {[%clk 0:02:50.3]} 11.
O-O {[%clk 0:03:04.4]} 11... Nf8 {[%clk 0:02:47.4]} 12. c4 {[%clk 0:03:04.5]}
12... Ne6 {[%clk 0:02:47.1]} 13. Rad1 {[%clk 0:02:54.1]} 13... Ng7 {[%clk
0:02:47.3]} 14. Ng3 {[%clk 0:02:46]} 14... h5 {[%clk 0:02:35.9]} 15. Ne4 {[%clk
0:02:25.5]} 15... Bc7 {[%clk 0:02:35.3]} 16. d5 {[%clk 0:02:19.1]} 16... f5
{[%clk 0:02:33.6]} 17. Bg5 {[%clk 0:02:01.6]} 17... fxe4 {[%clk 0:02:33.6]} 18.
Bxd8 {[%clk 0:02:00.9]} 18... exd3 {[%clk 0:02:34.5]} 19. Qxd3 {[%clk
0:01:37.6]} 19... Rxd8 {[%clk 0:02:34.5]} 20. Qa3 {[%clk 0:01:26.2]} 20... cxd5
{[%clk 0:02:13.3]} 21. cxd5 {[%clk 0:01:27.1]} 21... Nf5 {[%clk 0:02:12.6]} 22.
Rfe1 {[%clk 0:01:19.8]} 22... Bd6 {[%clk 0:02:11.5]} 23. Qb3 {[%clk 0:01:15.2]}
23... b6 {[%clk 0:02:10.3]} 24. Rd3 {[%clk 0:00:45.5]} 24... Ba6 {[%clk
0:02:06.4]} 25. Rf3 {[%clk 0:00:45.2]} 25... Nd4 {[%clk 0:01:58.3]} 26. Qe3
{[%clk 0:00:33.6]} 26... Nxf3+ {[%clk 0:01:50.8]} 27. Qxf3 {[%clk 0:00:34.4]}
27... Bc4 {[%clk 0:01:48.7]} 28. Rd1 {[%clk 0:00:31.2]} 28... Re8 {[%clk
0:01:44.3]} 29. Qc3 {[%clk 0:00:22.1]} 29... Rac8 {[%clk 0:01:42.4]} 30. Qd4
{[%clk 0:00:20.4]} 30... Bxa2 {[%clk 0:01:36.6]} 31. g3 {[%clk 0:00:15.9]} 31...
Bb3 {[%clk 0:01:35.6]} 32. Rd3 {[%clk 0:00:14.4]} 32... Bc2 {[%clk 0:01:08.1]}
33. Re3 {[%clk 0:00:05.5]} 33... Red8 {[%clk 0:01:02.9]} 34. Re2 {[%clk
0:00:05.1]} 34... Bf5 {[%clk 0:01:01.9]} 35. Qf6 {[%clk 0:00:03.9]} 35... Bf8
{[%clk 0:00:59.7]} 36. Rd2 {[%clk 0:00:02.5]} 36... Bh3 {[%clk 0:00:41.8]} 37.
f4 {[%clk 0:00:02.2]} 37... Bc5+ {[%clk 0:00:39.8]} 38. Kh1 {[%clk 0:00:02.7]}
38... Be7 {[%clk 0:00:24.8]} 39. Qe5 {[%clk 0:00:01.1]} 0-1

[Event "*** Titled Tuesday Blitz"]
[Site "Chess.com"]
[Date "2020.12.01"]
[Round "6"]
[White "Oleksandr_Bortnyk"]
[Black "Chesswizard_2007"]
[Result "1-0"]
[WhiteElo "2885"]
[BlackElo "2691"]
[TimeControl "180+1"]
[EndTime "11:05:09 PST"]
[Termination "Oleksandr_Bortnyk won by resignation"]

1. e4 {[%clk 0:03:00.9]} 1... e5 {[%clk 0:02:58.7]} 2. Bc4 {[%clk 0:02:57.3]}
2... Nf6 {[%clk 0:02:58.4]} 3. Nc3 {[%clk 0:02:56.8]} 3... Bc5 {[%clk
0:02:55.6]} 4. d3 {[%clk 0:02:55.7]} 4... h6 {[%clk 0:02:54.6]} 5. Be3 {[%clk
0:02:40.2]} 5... Bb6 {[%clk 0:02:50.2]} 6. Qf3 {[%clk 0:02:28.8]} 6... Nc6
{[%clk 0:02:48]} 7. Nge2 {[%clk 0:02:20.8]} 7... d6 {[%clk 0:02:34.9]} 8. h3
{[%clk 0:02:21]} 8... Be6 {[%clk 0:02:34.1]} 9. Bxe6 {[%clk 0:02:00.3]} 9...
fxe6 {[%clk 0:02:35]} 10. Qg3 {[%clk 0:01:59.7]} 10... Qd7 {[%clk 0:02:31.6]}
11. Bxb6 {[%clk 0:01:59.7]} 11... axb6 {[%clk 0:02:32.5]} 12. f4 {[%clk
0:02:00.3]} 12... O-O-O {[%clk 0:02:27.7]} 13. fxe5 {[%clk 0:01:59.8]} 13...
Nxe5 {[%clk 0:02:28.6]} 14. O-O-O {[%clk 0:01:55.2]} 14... Rhf8 {[%clk
0:02:26.9]} 15. d4 {[%clk 0:01:47.1]} 15... Nc6 {[%clk 0:02:25.1]} 16. d5 {[%clk
0:01:42.5]} 16... exd5 {[%clk 0:02:20.9]} 17. exd5 {[%clk 0:01:43.4]} 17... Ne5
{[%clk 0:02:19.5]} 18. Nf4 {[%clk 0:01:30.1]} 18... Rde8 {[%clk 0:02:17.9]} 19.
Rd4 {[%clk 0:01:26.7]} 19... Kb8 {[%clk 0:02:09.9]} 20. Rhd1 {[%clk 0:01:23.9]}
20... g5 {[%clk 0:02:04.5]} 21. Ne6 {[%clk 0:01:22.9]} 21... Rf7 {[%clk
0:02:00.3]} 22. Rb4 {[%clk 0:01:00.3]} 22... Nxd5 {[%clk 0:01:51.2]} 23. Nxd5
{[%clk 0:00:55.6]} 23... Qxe6 {[%clk 0:01:51.3]} 24. Qa3 {[%clk 0:00:46.4]}
24... Nc6 {[%clk 0:01:34.8]} 25. Ra4 {[%clk 0:00:46.8]} 25... Kc8 {[%clk
0:01:23.4]} 26. Qc3 {[%clk 0:00:24.7]} 26... Kd7 {[%clk 0:01:08.8]} 27. Rad4
{[%clk 0:00:16.5]} 27... Kc8 {[%clk 0:01:04.8]} 28. Ra4 {[%clk 0:00:11.7]} 28...
Kd7 {[%clk 0:01:00.2]} 29. Rad4 {[%clk 0:00:11.5]} 29... Qe5 {[%clk 0:00:50.2]}
30. Qc4 {[%clk 0:00:08.4]} 30... Kd8 {[%clk 0:00:48.1]} 31. R4d3 {[%clk
0:00:06.8]} 31... Qg7 {[%clk 0:00:41.3]} 32. Qa4 {[%clk 0:00:05]} 32... Kd7
{[%clk 0:00:28.8]} 33. a3 {[%clk 0:00:04]} 33... Rf2 {[%clk 0:00:27.2]} 34. Kb1
{[%clk 0:00:03.5]} 34... Ree2 {[%clk 0:00:27.2]} 35. Nxb6+ {[%clk 0:00:03.2]}
35... cxb6 {[%clk 0:00:24.9]} 36. Rxd6+ {[%clk 0:00:03.8]} 36... Kc7 {[%clk
0:00:25.3]} 37. Rxc6+ {[%clk 0:00:03.9]} 37... bxc6 {[%clk 0:00:20.1]} 38. Qa7+
{[%clk 0:00:04.4]} 38... Kc8 {[%clk 0:00:21]} 39. Qxg7 {[%clk 0:00:05]} 39...
Rxc2 {[%clk 0:00:21.9]} 40. Qh8+ {[%clk 0:00:03.1]} 40... Kc7 {[%clk 0:00:21.6]}
41. Qh7+ {[%clk 0:00:04]} 41... Kc8 {[%clk 0:00:22]} 42. Qxc2 {[%clk 0:00:04.9]}
1-0

[Event "*** Titled Tuesday Blitz"]
[Site "Chess.com"]
[Date "2020.12.01"]
[Round "6"]
[White "salomez"]
[Black "anon569"]
[Result "0-1"]
[WhiteElo "2134"]
[BlackElo "2281"]
[TimeControl "180+1"]
[EndTime "11:05:09 PST"]
[Termination "anon569 won by checkmate"]

1. e4 {[%clk 0:03:00.9]} 1... c5 {[%clk 0:01:33.9]} 2. Nf3 {[%clk 0:02:58.1]}
2... d6 {[%clk 0:01:34]} 3. d4 {[%clk 0:02:56.1]} 3... cxd4 {[%clk 0:01:34.9]}
4. Nxd4 {[%clk 0:02:54.5]} 4... Nf6 {[%clk 0:01:35.5]} 5. Nc3 {[%clk 0:02:51.8]}
5... a6 {[%clk 0:01:36]} 6. Bc4 {[%clk 0:02:50.9]} 6... e6 {[%clk 0:01:35.5]} 7.
a4 {[%clk 0:02:49.6]} 7... Qc7 {[%clk 0:01:36]} 8. Ba2 {[%clk 0:02:49]} 8...
Nbd7 {[%clk 0:01:34.9]} 9. f4 {[%clk 0:02:48.9]} 9... Nc5 {[%clk 0:01:34.5]} 10.
Qf3 {[%clk 0:02:49.5]} 10... b6 {[%clk 0:01:32.7]} 11. Be3 {[%clk 0:02:49.7]}
11... Bb7 {[%clk 0:01:33.2]} 12. f5 {[%clk 0:02:21.5]} 12... e5 {[%clk
0:01:19.4]} 13. Nde2 {[%clk 0:02:05]} 13... Ncxe4 {[%clk 0:01:16.5]} 14. Qh3
{[%clk 0:01:59.9]} 14... Nxc3 {[%clk 0:01:05.6]} 15. Nxc3 {[%clk 0:01:56.8]}
15... d5 {[%clk 0:01:05.7]} 16. Bg5 {[%clk 0:01:32.1]} 16... d4 {[%clk
0:00:45.7]} 17. Ne2 {[%clk 0:00:59.9]} 17... Ne4 {[%clk 0:00:38]} 18. Bh4 {[%clk
0:00:33.1]} 18... Bb4+ {[%clk 0:00:36.4]} 19. Kd1 {[%clk 0:00:25.8]} 19... Rc8
{[%clk 0:00:26.3]} 20. Qb3 {[%clk 0:00:24.2]} 20... a5 {[%clk 0:00:15]} 21. Rf1
{[%clk 0:00:22.5]} 21... Nc5 {[%clk 0:00:11.2]} 22. Qc4 {[%clk 0:00:19.2]} 22...
Ba6 {[%clk 0:00:10.8]} 23. Qd5 {[%clk 0:00:16.4]} 23... Bb7 {[%clk 0:00:10.1]}
24. Qc4 {[%clk 0:00:15.9]} 24... Ba6 {[%clk 0:00:06.2]} 25. Qd5 {[%clk 0:00:16]}
25... d3 {[%clk 0:00:04.4]} 26. cxd3 {[%clk 0:00:05.9]} 26... Nxd3 {[%clk
0:00:02.4]} 27. Rc1 {[%clk 0:00:03.5]} 27... Nxb2# {[%clk 0:00:02.3]} 0-1

[Event "*** Titled Tuesday Blitz"]
[Site "Chess.com"]
[Date "2020.12.01"]
[Round "6"]
[White "Vuk2000"]
[Black "Hypercar"]
[Result "1-0"]
[WhiteElo "2717"]
[BlackElo "2473"]
[TimeControl "180+1"]
[EndTime "11:05:14 PST"]
[Termination "Vuk2000 won on time"]

1. d4 {[%clk 0:03:00.9]} 1... g6 {[%clk 0:02:55.5]} 2. e4 {[%clk 0:02:58.2]}
2... Bg7 {[%clk 0:02:55.2]} 3. Nf3 {[%clk 0:02:57.7]} 3... c5 {[%clk 0:02:55.6]}
4. d5 {[%clk 0:02:56]} 4... d6 {[%clk 0:02:52.4]} 5. Nc3 {[%clk 0:02:54.1]} 5...
Nf6 {[%clk 0:02:52.6]} 6. a4 {[%clk 0:02:52.7]} 6... O-O {[%clk 0:02:52.8]} 7.
Bc4 {[%clk 0:02:51.2]} 7... Bg4 {[%clk 0:02:51.8]} 8. h3 {[%clk 0:02:46]} 8...
Bxf3 {[%clk 0:02:51.3]} 9. Qxf3 {[%clk 0:02:46.9]} 9... Nbd7 {[%clk 0:02:51.4]}
10. Be2 {[%clk 0:02:32.7]} 10... a6 {[%clk 0:02:45.5]} 11. g4 {[%clk 0:02:27.1]}
11... b5 {[%clk 0:02:39.9]} 12. axb5 {[%clk 0:02:24.4]} 12... axb5 {[%clk
0:02:40.8]} 13. Rxa8 {[%clk 0:02:23.9]} 13... Qxa8 {[%clk 0:02:41.7]} 14. Bxb5
{[%clk 0:02:20.9]} 14... Ne5 {[%clk 0:02:31.9]} 15. Qe2 {[%clk 0:02:20.5]} 15...
Qa7 {[%clk 0:01:40.2]} 16. O-O {[%clk 0:02:10]} 16... h5 {[%clk 0:01:36.1]} 17.
g5 {[%clk 0:01:45.9]} 17... Ne8 {[%clk 0:01:26]} 18. f4 {[%clk 0:01:39.1]} 18...
Nd7 {[%clk 0:01:24.2]} 19. Be3 {[%clk 0:01:28.1]} 19... Nb6 {[%clk 0:01:15.4]}
20. f5 {[%clk 0:01:13.5]} 20... Be5 {[%clk 0:01:10]} 21. fxg6 {[%clk 0:01:07.2]}
21... fxg6 {[%clk 0:00:59.7]} 22. Rxf8+ {[%clk 0:01:07.3]} 22... Kxf8 {[%clk
0:01:00.2]} 23. Qf3+ {[%clk 0:01:07.9]} 23... Nf6 {[%clk 0:00:57.3]} 24. gxf6
{[%clk 0:01:07.5]} 24... exf6 {[%clk 0:00:57.1]} 25. Bf4 {[%clk 0:00:46.2]}
25... Qa1+ {[%clk 0:00:49.5]} 26. Kg2 {[%clk 0:00:45.5]} 26... Ke7 {[%clk
0:00:35.7]} 27. Bxe5 {[%clk 0:00:41.9]} 27... dxe5 {[%clk 0:00:33.3]} 28. d6+
{[%clk 0:00:35.9]} 28... Ke6 {[%clk 0:00:21.9]} 29. Nd5 {[%clk 0:00:25.4]} 29...
Nxd5 {[%clk 0:00:14.4]} 30. exd5+ {[%clk 0:00:26.3]} 30... Kxd6 {[%clk
0:00:14.5]} 31. Qxf6+ {[%clk 0:00:26.3]} 31... Kxd5 {[%clk 0:00:14.6]} 32. Bc6+
{[%clk 0:00:23.6]} 32... Kc4 {[%clk 0:00:12.1]} 33. Qf1+ {[%clk 0:00:17.3]}
33... Qxf1+ {[%clk 0:00:08.6]} 34. Kxf1 {[%clk 0:00:18.2]} 34... g5 {[%clk
0:00:06.4]} 35. Be8 {[%clk 0:00:17.6]} 35... h4 {[%clk 0:00:05.1]} 36. Bd7
{[%clk 0:00:15.9]} 36... Kd4 {[%clk 0:00:04.9]} 37. Ke2 {[%clk 0:00:16.4]} 37...
e4 {[%clk 0:00:01.7]} 38. c3+ {[%clk 0:00:15.2]} 38... Kc4 {[%clk 0:00:01.4]}
39. Be6+ {[%clk 0:00:14.8]} 39... Kb5 {[%clk 0:00:01.8]} 40. Ke3 {[%clk
0:00:15.4]} 1-0

[Event "*** Titled Tuesday Blitz"]
[Site "Chess.com"]
[Date "2020.12.01"]
[Round "6"]
[White "Gudmundur_Kjartansson"]
[Black "Sergienko_Sergey"]
[Result "1/2-1/2"]
[WhiteElo "2554"]
[BlackElo "2362"]
[TimeControl "180+1"]
[EndTime "11:05:15 PST"]
[Termination "Game drawn by repetition"]

1. d4 {[%clk 0:03:00.9]} 1... Nf6 {[%clk 0:02:59.2]} 2. c4 {[%clk 0:03:01.2]}
2... c5 {[%clk 0:02:58.4]} 3. d5 {[%clk 0:03:00.5]} 3... e5 {[%clk 0:02:58.3]}
4. Nc3 {[%clk 0:03:00.3]} 4... d6 {[%clk 0:02:58.2]} 5. e4 {[%clk 0:03:00.7]}
5... Be7 {[%clk 0:02:58.2]} 6. Bd3 {[%clk 0:03:00]} 6... Nbd7 {[%clk 0:02:57.1]}
7. Nge2 {[%clk 0:03:00.3]} 7... Nf8 {[%clk 0:02:56.7]} 8. h4 {[%clk 0:02:58.1]}
8... h6 {[%clk 0:02:50.8]} 9. f3 {[%clk 0:02:52.7]} 9... Ng6 {[%clk 0:02:43.3]}
10. g3 {[%clk 0:02:49.8]} 10... O-O {[%clk 0:02:42]} 11. h5 {[%clk 0:02:44.8]}
11... Nh8 {[%clk 0:02:41.4]} 12. Be3 {[%clk 0:02:41]} 12... Nh7 {[%clk
0:02:35.6]} 13. Qd2 {[%clk 0:02:39.3]} 13... Bg5 {[%clk 0:02:28.7]} 14. f4
{[%clk 0:02:37.6]} 14... exf4 {[%clk 0:02:27.2]} 15. gxf4 {[%clk 0:02:37.7]}
15... Bh4+ {[%clk 0:02:27]} 16. Kd1 {[%clk 0:02:38.1]} 16... Bg4 {[%clk
0:02:03.3]} 17. Kc2 {[%clk 0:02:34.1]} 17... Bxh5 {[%clk 0:01:49.5]} 18. Rag1
{[%clk 0:02:23.1]} 18... Bxe2 {[%clk 0:01:44.6]} 19. Qxe2 {[%clk 0:02:17.5]}
19... Ng6 {[%clk 0:01:12.2]} 20. Qh2 {[%clk 0:01:19.2]} 20... Bf6 {[%clk
0:00:46.7]} 21. f5 {[%clk 0:01:10.5]} 21... Ng5 {[%clk 0:00:46.5]} 22. fxg6
{[%clk 0:01:06.9]} 22... fxg6 {[%clk 0:00:46.5]} 23. Rf1 {[%clk 0:00:52.6]}
23... a6 {[%clk 0:00:43.6]} 24. Bf4 {[%clk 0:00:48.5]} 24... Nf7 {[%clk
0:00:37.9]} 25. Rhg1 {[%clk 0:00:44.5]} 25... g5 {[%clk 0:00:37]} 26. Bg3 {[%clk
0:00:42.7]} 26... Ne5 {[%clk 0:00:36.2]} 27. Qh3 {[%clk 0:00:39.6]} 27... b5
{[%clk 0:00:32.9]} 28. Bxe5 {[%clk 0:00:38.1]} 28... Bxe5 {[%clk 0:00:32]} 29.
Rxf8+ {[%clk 0:00:37.5]} 29... Qxf8 {[%clk 0:00:31.1]} 30. Rf1 {[%clk
0:00:38.1]} 30... Qd8 {[%clk 0:00:26.9]} 31. Qe6+ {[%clk 0:00:34.8]} 31... Kh8
{[%clk 0:00:26]} 32. cxb5 {[%clk 0:00:34.7]} 32... axb5 {[%clk 0:00:21.6]} 33.
Bxb5 {[%clk 0:00:35.3]} 33... Qa5 {[%clk 0:00:17.4]} 34. Bc4 {[%clk 0:00:31.4]}
34... Qb4 {[%clk 0:00:15.9]} 35. Bb3 {[%clk 0:00:18.3]} 35... c4 {[%clk
0:00:14.9]} 36. Qe7 {[%clk 0:00:17.8]} 36... cxb3+ {[%clk 0:00:13.3]} 37. axb3
{[%clk 0:00:17.4]} 37... Rb8 {[%clk 0:00:10.8]} 38. Rf8+ {[%clk 0:00:17]} 38...
Rxf8 {[%clk 0:00:09.7]} 39. Qxf8+ {[%clk 0:00:17.2]} 39... Kh7 {[%clk
0:00:09.7]} 40. Qf5+ {[%clk 0:00:17.3]} 40... Kh8 {[%clk 0:00:09.6]} 41. Qf8+
{[%clk 0:00:15.4]} 41... Kh7 {[%clk 0:00:09.6]} 42. Qf5+ {[%clk 0:00:14.1]}
42... Kh8 {[%clk 0:00:09.3]} 43. Qf8+ {[%clk 0:00:14.1]} 1/2-1/2

[Event "*** Titled Tuesday Blitz"]
[Site "Chess.com"]
[Date "2020.12.01"]
[Round "6"]
[White "Deepweb2020"]
[Black "Juanovic"]
[Result "0-1"]
[WhiteElo "2281"]
[BlackElo "2177"]
[TimeControl "180+1"]
[EndTime "11:05:15 PST"]
[Termination "Juanovic won by resignation"]

1. d4 {[%clk 0:03:00.9]} 1... d5 {[%clk 0:02:58.7]} 2. c4 {[%clk 0:03:00]} 2...
e6 {[%clk 0:02:50.5]} 3. Nf3 {[%clk 0:02:59.1]} 3... Nf6 {[%clk 0:02:49]} 4. g3
{[%clk 0:03:00]} 4... a6 {[%clk 0:02:44.4]} 5. Bg2 {[%clk 0:03:00.8]} 5... c5
{[%clk 0:02:43.4]} 6. cxd5 {[%clk 0:03:00.2]} 6... exd5 {[%clk 0:02:41]} 7. a3
{[%clk 0:03:00]} 7... Nc6 {[%clk 0:02:36.5]} 8. dxc5 {[%clk 0:02:54.8]} 8...
Bxc5 {[%clk 0:02:36]} 9. b4 {[%clk 0:02:55.5]} 9... Ba7 {[%clk 0:02:31.6]} 10.
O-O {[%clk 0:02:53.6]} 10... h6 {[%clk 0:02:31.6]} 11. Bb2 {[%clk 0:02:51.9]}
11... Be6 {[%clk 0:02:30.4]} 12. Nbd2 {[%clk 0:02:48.5]} 12... O-O {[%clk
0:02:30.2]} 13. Nb3 {[%clk 0:02:48.1]} 13... Ne4 {[%clk 0:02:28.5]} 14. Nfd4
{[%clk 0:02:42.6]} 14... Nxd4 {[%clk 0:02:25.8]} 15. Nxd4 {[%clk 0:02:38.6]}
15... Rc8 {[%clk 0:02:25.3]} 16. Rc1 {[%clk 0:02:19.4]} 16... Rxc1 {[%clk
0:02:22.9]} 17. Qxc1 {[%clk 0:02:19]} 17... Nd6 {[%clk 0:02:22.7]} 18. Qc3
{[%clk 0:02:10.6]} 18... Qf6 {[%clk 0:02:16.2]} 19. e3 {[%clk 0:01:16.5]} 19...
Nc4 {[%clk 0:02:13.8]} 20. Bc1 {[%clk 0:01:09.9]} 20... Bxd4 {[%clk 0:02:11.5]}
21. exd4 {[%clk 0:01:04.7]} 21... b5 {[%clk 0:02:10.6]} 22. Bf4 {[%clk
0:01:03.1]} 22... Rc8 {[%clk 0:02:04.3]} 23. Re1 {[%clk 0:00:56.3]} 23... Qf5
{[%clk 0:02:00.1]} 24. Qf3 {[%clk 0:00:45.6]} 24... f6 {[%clk 0:01:57.4]} 25.
Qe2 {[%clk 0:00:41.3]} 25... Bf7 {[%clk 0:01:57]} 26. Bf3 {[%clk 0:00:34.1]}
26... Re8 {[%clk 0:01:55]} 27. Qd1 {[%clk 0:00:30.6]} 27... Rxe1+ {[%clk
0:01:53.7]} 28. Qxe1 {[%clk 0:00:31.4]} 28... g5 {[%clk 0:01:53.7]} 29. Qe7
{[%clk 0:00:18.7]} 29... gxf4 {[%clk 0:01:49.3]} 30. Kg2 {[%clk 0:00:17.3]}
30... fxg3 {[%clk 0:01:48.8]} 31. hxg3 {[%clk 0:00:18.1]} 31... Kg7 {[%clk
0:01:44.9]} 32. Qa7 {[%clk 0:00:16.3]} 32... Qe6 {[%clk 0:01:44.3]} 33. Bh5
{[%clk 0:00:15.2]} 33... Nxa3 {[%clk 0:01:40.9]} 34. f4 {[%clk 0:00:14]} 34...
f5 {[%clk 0:01:40.3]} 35. Bf3 {[%clk 0:00:09.5]} 35... Nc4 {[%clk 0:01:40.1]}
36. Qb8 {[%clk 0:00:09]} 36... Qd6 {[%clk 0:01:31.8]} 37. Qb7 {[%clk 0:00:07.4]}
37... Qxb4 {[%clk 0:01:28.8]} 38. Bxd5 {[%clk 0:00:06]} 38... Qf8 {[%clk
0:01:25.4]} 39. Bf3 {[%clk 0:00:05.9]} 39... Qd6 {[%clk 0:01:21.3]} 40. d5
{[%clk 0:00:05.4]} 40... Ne3+ {[%clk 0:01:20.5]} 41. Kf2 {[%clk 0:00:05.2]}
41... Nxd5 {[%clk 0:01:20.6]} 42. Bh5 {[%clk 0:00:04.5]} 42... Qb6+ {[%clk
0:01:18.4]} 43. Qxb6 {[%clk 0:00:02.9]} 43... Nxb6 {[%clk 0:01:19.3]} 44. Bd1
{[%clk 0:00:01.7]} 44... Kf6 {[%clk 0:01:18.5]} 45. Ke3 {[%clk 0:00:02]} 45...
Bd5 {[%clk 0:01:18.4]} 46. Kd4 {[%clk 0:00:02.6]} 46... Be4 {[%clk 0:01:18.4]}
47. Kc5 {[%clk 0:00:03.2]} 47... Nc4 {[%clk 0:01:17.4]} 48. Kb4 {[%clk
0:00:02.7]} 48... Ne3 {[%clk 0:01:15.2]} 49. Bh5 {[%clk 0:00:03.2]} 49... Nf1
{[%clk 0:01:14]} 50. Ka5 {[%clk 0:00:04]} 50... Bd3 {[%clk 0:01:13]} 51. Bd1
{[%clk 0:00:04.9]} 51... Nxg3 {[%clk 0:01:12.7]} 52. Kxa6 {[%clk 0:00:05.6]}
52... h5 {[%clk 0:01:09.8]} 53. Ka5 {[%clk 0:00:06.5]} 53... h4 {[%clk
0:01:10.1]} 54. Bf3 {[%clk 0:00:07.3]} 54... h3 {[%clk 0:01:09.9]} 55. Kb4
{[%clk 0:00:05.3]} 55... h2 {[%clk 0:01:09.9]} 56. Bg2 {[%clk 0:00:04.9]} 56...
h1=Q {[%clk 0:01:09.6]} 57. Bxh1 {[%clk 0:00:04.5]} 57... Nxh1 {[%clk
0:01:10.5]} 0-1